[Event "*** Titled Tuesday Blitz"]
[Site "Chess.com"]
[Date "2021.03.30"]
[Round "7"]
[White "RamyresCoelho"]
[Black "GMJustin"]
[Result "0-1"]
[WhiteElo "2148"]
[BlackElo "2295"]
[TimeControl "180+1"]
[EndTime "11:18:39 PDT"]
[Termination "GMJustin won on time"]

1. e4 {[%clk 0:03:00.9]} 1... c6 {[%clk 0:02:56.8]} 2. d4 {[%clk 0:02:59.6]}
2... d5 {[%clk 0:02:56.3]} 3. Nc3 {[%clk 0:03:00.5]} 3... dxe4 {[%clk
0:02:55.9]} 4. Nxe4 {[%clk 0:03:01.4]} 4... Nf6 {[%clk 0:02:56.3]} 5. Nxf6+
{[%clk 0:03:01.6]} 5... exf6 {[%clk 0:02:57.2]} 6. Nf3 {[%clk 0:03:02.2]} 6...
Bd6 {[%clk 0:02:51.2]} 7. Bd3 {[%clk 0:03:03.1]} 7... Qe7+ {[%clk 0:02:40.3]} 8.
Be3 {[%clk 0:03:04]} 8... f5 {[%clk 0:02:26.4]} 9. O-O {[%clk 0:03:02.4]} 9...
f4 {[%clk 0:02:21.9]} 10. Bxf4 {[%clk 0:02:55]} 10... Bxf4 {[%clk 0:02:21.2]}
11. Re1 {[%clk 0:02:54.5]} 11... Be6 {[%clk 0:02:20.7]} 12. g3 {[%clk 0:02:50]}
12... Bd6 {[%clk 0:02:16.9]} 13. c4 {[%clk 0:02:46.7]} 13... Bb4 {[%clk
0:02:04.7]} 14. Re3 {[%clk 0:02:38.4]} 14... O-O {[%clk 0:02:01.3]} 15. d5
{[%clk 0:02:35.8]} 15... Bc5 {[%clk 0:01:46.8]} 16. Re2 {[%clk 0:02:25.9]} 16...
Qf6 {[%clk 0:01:45]} 17. dxe6 {[%clk 0:01:16.5]} 17... Qxf3 {[%clk 0:01:39.8]}
18. e7 {[%clk 0:01:15.1]} 18... Re8 {[%clk 0:01:34.3]} 19. Qb3 {[%clk
0:01:01.3]} 19... Qg4 {[%clk 0:00:27.1]} 20. Qxb7 {[%clk 0:00:59]} 20... Nd7
{[%clk 0:00:20.7]} 21. Qxc6 {[%clk 0:00:27.9]} 21... Rac8 {[%clk 0:00:15.9]} 22.
Qb7 {[%clk 0:00:20.2]} 22... Nf6 {[%clk 0:00:14.8]} 23. Rae1 {[%clk 0:00:18.5]}
23... Qd7 {[%clk 0:00:12.4]} 24. Qf3 {[%clk 0:00:16.7]} 24... Rxe7 {[%clk
0:00:11.5]} 25. Rxe7 {[%clk 0:00:16.1]} 25... Bxe7 {[%clk 0:00:11.2]} 26. Qe3
{[%clk 0:00:15.5]} 26... Bc5 {[%clk 0:00:09.8]} 27. Qf3 {[%clk 0:00:12.5]} 27...
Rd8 {[%clk 0:00:09.4]} 28. Bf5 {[%clk 0:00:11.2]} 28... Qd2 {[%clk 0:00:08.5]}
29. Re2 {[%clk 0:00:08.8]} 29... Qd4 {[%clk 0:00:07]} 30. Kg2 {[%clk 0:00:08.9]}
30... g6 {[%clk 0:00:06.9]} 31. Bb1 {[%clk 0:00:06.5]} 31... Kg7 {[%clk
0:00:07]} 32. h4 {[%clk 0:00:06.3]} 32... Qd7 {[%clk 0:00:06.1]} 33. b3 {[%clk
0:00:05.8]} 33... Rb8 {[%clk 0:00:04.8]} 34. h5 {[%clk 0:00:04.7]} 34... Qb7
{[%clk 0:00:03.3]} 35. h6+ {[%clk 0:00:03.9]} 35... Kxh6 {[%clk 0:00:03.6]} 36.
Be4 {[%clk 0:00:02.9]} 36... Nxe4 {[%clk 0:00:03.7]} 37. Rxe4 {[%clk 0:00:03.8]}
37... Kg7 {[%clk 0:00:03.7]} 0-1

[Event "*** Titled Tuesday Blitz"]
[Site "Chess.com"]
[Date "2021.03.30"]
[Round "7"]
[White "DKmirl"]
[Black "chessajedrezz2020"]
[Result "0-1"]
[WhiteElo "1982"]
[BlackElo "2557"]
[TimeControl "180+1"]
[EndTime "11:18:39 PDT"]
[Termination "chessajedrezz2020 won by checkmate"]

1. d4 {[%clk 0:03:00.9]} 1... d5 {[%clk 0:02:56.7]} 2. c4 {[%clk 0:03:00.1]}
2... c6 {[%clk 0:02:55.9]} 3. Nf3 {[%clk 0:03:00]} 3... Nf6 {[%clk 0:02:55.2]}
4. g3 {[%clk 0:02:59.5]} 4... e6 {[%clk 0:02:54.6]} 5. Bg2 {[%clk 0:02:59.7]}
5... Nbd7 {[%clk 0:02:54.4]} 6. O-O {[%clk 0:03:00]} 6... Be7 {[%clk 0:02:47.3]}
7. Nbd2 {[%clk 0:03:00]} 7... O-O {[%clk 0:02:38.3]} 8. Qc2 {[%clk 0:02:59.2]}
8... b6 {[%clk 0:02:30.4]} 9. e4 {[%clk 0:02:58.9]} 9... Bb7 {[%clk 0:02:30.8]}
10. e5 {[%clk 0:02:55.7]} 10... Ne8 {[%clk 0:02:24.9]} 11. cxd5 {[%clk
0:02:46.8]} 11... cxd5 {[%clk 0:02:23.4]} 12. Nb3 {[%clk 0:02:40.5]} 12... a5
{[%clk 0:02:19.3]} 13. a4 {[%clk 0:02:21.5]} 13... Nc7 {[%clk 0:02:16.5]} 14. h4
{[%clk 0:02:16.3]} 14... Na6 {[%clk 0:02:08.1]} 15. Bg5 {[%clk 0:02:15]} 15...
Nb4 {[%clk 0:02:07.3]} 16. Qb1 {[%clk 0:01:53.7]} 16... Ba6 {[%clk 0:02:03.3]}
17. Rd1 {[%clk 0:01:37.2]} 17... Rc8 {[%clk 0:01:52.6]} 18. Bxe7 {[%clk
0:01:17.8]} 18... Qxe7 {[%clk 0:01:53.5]} 19. Ng5 {[%clk 0:01:18.3]} 19... g6
{[%clk 0:01:52]} 20. Rd2 {[%clk 0:01:10.3]} 20... Rc7 {[%clk 0:01:27.9]} 21. Qd1
{[%clk 0:01:06.6]} 21... Rfc8 {[%clk 0:01:21]} 22. Rc1 {[%clk 0:00:54.8]} 22...
Bc4 {[%clk 0:01:03.2]} 23. Na1 {[%clk 0:00:40]} 23... Nf8 {[%clk 0:00:40.9]} 24.
b3 {[%clk 0:00:25.9]} 24... Ba6 {[%clk 0:00:33.3]} 25. Rxc7 {[%clk 0:00:16.9]}
25... Qxc7 {[%clk 0:00:34.2]} 26. Bf1 {[%clk 0:00:10]} 26... h6 {[%clk
0:00:29.6]} 27. Bxa6 {[%clk 0:00:09]} 27... Nxa6 {[%clk 0:00:28.9]} 28. Nh3
{[%clk 0:00:08.2]} 28... Nb4 {[%clk 0:00:28.3]} 29. Kg2 {[%clk 0:00:05.8]} 29...
Qc1 {[%clk 0:00:27.2]} 30. Qxc1 {[%clk 0:00:05.7]} 30... Rxc1 {[%clk 0:00:26.6]}
31. Ng1 {[%clk 0:00:02.5]} 31... Rxa1 {[%clk 0:00:26.3]} 32. Rb2 {[%clk
0:00:02.4]} 32... Rc1 {[%clk 0:00:25.3]} 33. Nf3 {[%clk 0:00:02.7]} 33... Rc2
{[%clk 0:00:25.2]} 34. Rxc2 {[%clk 0:00:02.5]} 34... Nxc2 {[%clk 0:00:25.7]} 35.
Nd2 {[%clk 0:00:03.2]} 35... Nxd4 {[%clk 0:00:25.2]} 36. b4 {[%clk 0:00:02.8]}
36... axb4 {[%clk 0:00:25]} 37. Nf3 {[%clk 0:00:03.6]} 37... Nxf3 {[%clk
0:00:25]} 38. Kxf3 {[%clk 0:00:03.7]} 38... b3 {[%clk 0:00:25.5]} 39. Ke3 {[%clk
0:00:04.4]} 39... b2 {[%clk 0:00:25.8]} 40. Kd2 {[%clk 0:00:05.3]} 40... b1=Q
{[%clk 0:00:25.8]} 41. Kc3 {[%clk 0:00:05.8]} 41... Nd7 {[%clk 0:00:24.6]} 42.
f4 {[%clk 0:00:04.6]} 42... Nc5 {[%clk 0:00:24.8]} 43. a5 {[%clk 0:00:04.6]}
43... Qb3+ {[%clk 0:00:24.8]} 44. Kd2 {[%clk 0:00:05]} 44... bxa5 {[%clk
0:00:25.3]} 45. f5 {[%clk 0:00:04.9]} 45... gxf5 {[%clk 0:00:25.5]} 46. g4
{[%clk 0:00:05]} 46... fxg4 {[%clk 0:00:26.4]} 47. h5 {[%clk 0:00:05.5]} 47...
a4 {[%clk 0:00:27.3]} 48. Kc1 {[%clk 0:00:05.3]} 48... a3 {[%clk 0:00:28.2]} 49.
Kd2 {[%clk 0:00:06]} 49... a2 {[%clk 0:00:29.1]} 50. Ke2 {[%clk 0:00:06.7]}
50... a1=Q {[%clk 0:00:28.1]} 51. Kd2 {[%clk 0:00:07.3]} 51... Qaa2+ {[%clk
0:00:28.5]} 52. Kc1 {[%clk 0:00:07]} 52... Qbb1# {[%clk 0:00:29.4]} 0-1

[Event "*** Titled Tuesday Blitz"]
[Site "Chess.com"]
[Date "2021.03.30"]
[Round "7"]
[White "SanchezKelvin"]
[Black "MF1966Idrisov"]
[Result "1-0"]
[WhiteElo "2606"]
[BlackElo "2360"]
[TimeControl "180+1"]
[EndTime "11:18:40 PDT"]
[Termination "SanchezKelvin won by resignation"]

1. d4 {[%clk 0:02:59.9]} 1... Nf6 {[%clk 0:02:59]} 2. c4 {[%clk 0:02:58.4]} 2...
e6 {[%clk 0:02:59]} 3. Nf3 {[%clk 0:02:56.7]} 3... d5 {[%clk 0:02:58.9]} 4. Nc3
{[%clk 0:02:54.6]} 4... b6 {[%clk 0:02:58.7]} 5. Bg5 {[%clk 0:02:50.8]} 5... Be7
{[%clk 0:02:58.1]} 6. cxd5 {[%clk 0:02:47.9]} 6... Nxd5 {[%clk 0:02:57.1]} 7.
Bxe7 {[%clk 0:02:46.6]} 7... Qxe7 {[%clk 0:02:50.1]} 8. Rc1 {[%clk 0:02:44.9]}
8... Bb7 {[%clk 0:02:41.5]} 9. e3 {[%clk 0:02:44.6]} 9... O-O {[%clk 0:02:40.4]}
10. Bd3 {[%clk 0:02:43.2]} 10... Rc8 {[%clk 0:02:39.5]} 11. Qc2 {[%clk
0:02:27.6]} 11... h6 {[%clk 0:02:31.2]} 12. Nxd5 {[%clk 0:02:26.1]} 12... Bxd5
{[%clk 0:02:30.5]} 13. Bh7+ {[%clk 0:02:09.8]} 13... Kh8 {[%clk 0:02:27.4]} 14.
Be4 {[%clk 0:02:09.6]} 14... Qd6 {[%clk 0:02:18.1]} 15. Bxd5 {[%clk 0:02:06.8]}
15... Qxd5 {[%clk 0:02:18]} 16. Ne5 {[%clk 0:02:01.8]} 16... Kg8 {[%clk
0:02:08.9]} 17. O-O {[%clk 0:01:57.1]} 17... Nd7 {[%clk 0:02:05.5]} 18. Nc6
{[%clk 0:01:53.2]} 18... Qd6 {[%clk 0:01:58]} 19. e4 {[%clk 0:01:50.1]} 19...
Nf8 {[%clk 0:01:56.6]} 20. Rfd1 {[%clk 0:01:46.8]} 20... Ng6 {[%clk 0:01:48.2]}
21. e5 {[%clk 0:01:36]} 21... Qd7 {[%clk 0:01:42.5]} 22. Qe4 {[%clk 0:01:31.7]}
22... a6 {[%clk 0:01:39.9]} 23. g3 {[%clk 0:01:30.3]} 23... Rf8 {[%clk 0:01:38]}
24. Rc3 {[%clk 0:01:26.9]} 24... Rac8 {[%clk 0:01:37.2]} 25. Rdc1 {[%clk
0:01:26.7]} 25... Ne7 {[%clk 0:01:32.9]} 26. Na7 {[%clk 0:01:23.1]} 26... Nd5
{[%clk 0:01:30]} 27. Nxc8 {[%clk 0:01:08.2]} 27... Nxc3 {[%clk 0:01:26.6]} 28.
Nxb6 {[%clk 0:01:01]} 28... cxb6 {[%clk 0:01:19.2]} 29. Rxc3 {[%clk 0:00:59.5]}
29... Rc8 {[%clk 0:01:16.2]} 30. h4 {[%clk 0:00:30.4]} 30... h5 {[%clk
0:01:14.3]} 31. Rd3 {[%clk 0:00:25.9]} 31... Qd5 {[%clk 0:01:12.7]} 32. Qxd5
{[%clk 0:00:25.1]} 32... exd5 {[%clk 0:01:12.5]} 33. Rc3 {[%clk 0:00:24.7]}
33... Rxc3 {[%clk 0:01:06.1]} 34. bxc3 {[%clk 0:00:21.5]} 34... Kh7 {[%clk
0:01:06]} 35. f3 {[%clk 0:00:21.1]} 35... Kg6 {[%clk 0:01:06.2]} 36. g4 {[%clk
0:00:21.2]} 36... b5 {[%clk 0:00:52.3]} 37. a3 {[%clk 0:00:19.7]} 37... a5
{[%clk 0:00:51.5]} 38. Kf2 {[%clk 0:00:19.7]} 38... Kh6 {[%clk 0:00:47.4]} 39.
Ke3 {[%clk 0:00:19.6]} 39... g6 {[%clk 0:00:41.5]} 40. Kf4 {[%clk 0:00:18.8]}
40... hxg4 {[%clk 0:00:39.5]} 41. fxg4 {[%clk 0:00:19.1]} 41... a4 {[%clk
0:00:37.9]} 42. Ke3 {[%clk 0:00:17.5]} 42... g5 {[%clk 0:00:37.8]} 43. hxg5+
{[%clk 0:00:16.6]} 43... Kxg5 {[%clk 0:00:37.9]} 44. Kf3 {[%clk 0:00:16.9]}
44... Kh6 {[%clk 0:00:35.2]} 45. Kf4 {[%clk 0:00:17]} 45... Kg6 {[%clk
0:00:35.1]} 46. g5 {[%clk 0:00:16.8]} 46... Kg7 {[%clk 0:00:30.7]} 47. Kf5
{[%clk 0:00:16.7]} 47... Kf8 {[%clk 0:00:30.9]} 48. Kf6 {[%clk 0:00:16.5]} 48...
Ke8 {[%clk 0:00:31.2]} 49. g6 {[%clk 0:00:16.2]} 49... fxg6 {[%clk 0:00:30.9]}
50. Kxg6 {[%clk 0:00:16.4]} 50... Ke7 {[%clk 0:00:28.9]} 51. Kf5 {[%clk
0:00:15.7]} 1-0

[Event "*** Titled Tuesday Blitz"]
[Site "Chess.com"]
[Date "2021.03.30"]
[Round "7"]
[White "kikydu96"]
[Black "VladimirBugayev"]
[Result "1-0"]
[WhiteElo "2479"]
[BlackElo "2285"]
[TimeControl "180+1"]
[EndTime "11:18:44 PDT"]
[Termination "kikydu96 won by resignation"]

1. e4 {[%clk 0:03:00.9]} 1... c6 {[%clk 0:02:59.6]} 2. d4 {[%clk 0:02:58.6]}
2... d5 {[%clk 0:02:59.8]} 3. Nc3 {[%clk 0:02:56.5]} 3... dxe4 {[%clk
0:02:59.3]} 4. Nxe4 {[%clk 0:02:55.7]} 4... Nf6 {[%clk 0:03:00]} 5. Nxf6+ {[%clk
0:02:53.2]} 5... exf6 {[%clk 0:03:00.9]} 6. c3 {[%clk 0:02:49.9]} 6... Bd6
{[%clk 0:03:00.7]} 7. Bd3 {[%clk 0:02:49.7]} 7... O-O {[%clk 0:03:01]} 8. Qc2
{[%clk 0:02:48.9]} 8... Re8+ {[%clk 0:03:00.2]} 9. Ne2 {[%clk 0:02:41]} 9... h5
{[%clk 0:02:59.5]} 10. Be3 {[%clk 0:02:29.3]} 10... Nd7 {[%clk 0:02:55.2]} 11.
O-O-O {[%clk 0:02:28.8]} 11... Nf8 {[%clk 0:02:53.3]} 12. Ng3 {[%clk 0:02:20.7]}
12... g6 {[%clk 0:02:50.5]} 13. Ne4 {[%clk 0:02:16.1]} 13... Be7 {[%clk
0:02:49.3]} 14. h3 {[%clk 0:02:13.6]} 14... f5 {[%clk 0:02:43.6]} 15. Nd2 {[%clk
0:02:07]} 15... Bf6 {[%clk 0:02:28.7]} 16. Nf3 {[%clk 0:02:04.6]} 16... Be6
{[%clk 0:02:25.2]} 17. Kb1 {[%clk 0:02:03.7]} 17... Qd5 {[%clk 0:01:46.1]} 18.
c4 {[%clk 0:01:46.1]} 18... Qa5 {[%clk 0:01:44.2]} 19. Bd2 {[%clk 0:01:43.3]}
19... Qc7 {[%clk 0:01:36.9]} 20. Bc3 {[%clk 0:01:43.5]} 20... b5 {[%clk
0:01:23.9]} 21. d5 {[%clk 0:01:15.3]} 21... Bxc3 {[%clk 0:01:22.1]} 22. Qxc3
{[%clk 0:01:13.6]} 22... cxd5 {[%clk 0:01:20.4]} 23. c5 {[%clk 0:01:13.3]} 23...
b4 {[%clk 0:01:17]} 24. Qxb4 {[%clk 0:01:08.8]} 24... Rab8 {[%clk 0:01:12.4]}
25. Qc3 {[%clk 0:01:08.8]} 25... d4 {[%clk 0:01:11.8]} 26. Nxd4 {[%clk
0:01:04.3]} 26... Bd5 {[%clk 0:01:06.2]} 27. Rhg1 {[%clk 0:00:49.9]} 27... Nd7
{[%clk 0:00:49.7]} 28. c6 {[%clk 0:00:39]} 28... Ne5 {[%clk 0:00:41]} 29. Bc2
{[%clk 0:00:23.8]} 29... Nc4 {[%clk 0:00:39.3]} 30. Bb3 {[%clk 0:00:22.2]} 30...
Nb6 {[%clk 0:00:32.3]} 31. Qc5 {[%clk 0:00:18]} 31... Bxb3 {[%clk 0:00:29.5]}
32. Nxb3 {[%clk 0:00:18.9]} 32... Re5 {[%clk 0:00:27.4]} 33. Qd6 {[%clk
0:00:18.1]} 33... Rc8 {[%clk 0:00:20.7]} 34. Qxc7 {[%clk 0:00:15.4]} 34... Rxc7
{[%clk 0:00:20.9]} 35. Rc1 {[%clk 0:00:16.1]} 35... Nd5 {[%clk 0:00:16.5]} 36.
Nd4 {[%clk 0:00:15.1]} 36... Nf4 {[%clk 0:00:15.9]} 37. Rge1 {[%clk 0:00:13.6]}
37... Nd3 {[%clk 0:00:14.6]} 38. Rxe5 {[%clk 0:00:13.6]} 38... Nxe5 {[%clk
0:00:14.8]} 39. Rc5 {[%clk 0:00:13.6]} 39... f6 {[%clk 0:00:12.5]} 40. b4 {[%clk
0:00:13.1]} 40... a6 {[%clk 0:00:12.7]} 41. a4 {[%clk 0:00:13.2]} 41... Nd3
{[%clk 0:00:12.6]} 42. Rc4 {[%clk 0:00:12.1]} 42... Ne5 {[%clk 0:00:12.6]} 43.
Rc3 {[%clk 0:00:12.2]} 43... Kf7 {[%clk 0:00:10.6]} 44. b5 {[%clk 0:00:12.6]}
44... axb5 {[%clk 0:00:09.4]} 45. axb5 {[%clk 0:00:13.5]} 45... Rc8 {[%clk
0:00:05.9]} 46. b6 {[%clk 0:00:13.6]} 46... Nxc6 {[%clk 0:00:05.6]} 47. Rxc6
{[%clk 0:00:13.2]} 47... Rb8 {[%clk 0:00:06.2]} 48. Rc7+ {[%clk 0:00:12.1]}
48... Ke8 {[%clk 0:00:06.5]} 49. b7 {[%clk 0:00:13]} 49... Kd8 {[%clk
0:00:06.2]} 50. Ne6+ {[%clk 0:00:12.9]} 50... Ke8 {[%clk 0:00:05.5]} 51. Rc8+
{[%clk 0:00:13.8]} 1-0

[Event "*** Titled Tuesday Blitz"]
[Site "Chess.com"]
[Date "2021.03.30"]
[Round "7"]
[White "kakorrhaphiophobie"]
[Black "PawnEatingZombie"]
[Result "1-0"]
[WhiteElo "2346"]
[BlackElo "2191"]
[TimeControl "180+1"]
[EndTime "11:18:44 PDT"]
[Termination "kakorrhaphiophobie won on time"]

1. d4 {[%clk 0:03:00.9]} 1... d5 {[%clk 0:02:59.3]} 2. c4 {[%clk 0:03:00.7]}
2... e6 {[%clk 0:02:59.5]} 3. Nf3 {[%clk 0:03:00.7]} 3... dxc4 {[%clk
0:02:58.6]} 4. e3 {[%clk 0:02:53.6]} 4... b5 {[%clk 0:02:58.5]} 5. a4 {[%clk
0:02:52.1]} 5... c6 {[%clk 0:02:58.7]} 6. b3 {[%clk 0:02:47.6]} 6... Bb4+ {[%clk
0:02:58.6]} 7. Bd2 {[%clk 0:02:41.1]} 7... Bxd2+ {[%clk 0:02:58.9]} 8. Qxd2
{[%clk 0:02:37.3]} 8... a5 {[%clk 0:02:58.6]} 9. bxc4 {[%clk 0:02:26.7]} 9... b4
{[%clk 0:02:57.7]} 10. Bd3 {[%clk 0:02:22]} 10... Nf6 {[%clk 0:02:56.6]} 11. O-O
{[%clk 0:02:21.8]} 11... c5 {[%clk 0:02:55]} 12. Qc2 {[%clk 0:02:15.4]} 12...
Bb7 {[%clk 0:02:49.6]} 13. Nbd2 {[%clk 0:02:10.8]} 13... Nbd7 {[%clk 0:02:47.2]}
14. Ne4 {[%clk 0:01:27.1]} 14... Qc7 {[%clk 0:02:30.5]} 15. Nfd2 {[%clk
0:01:12.8]} 15... O-O {[%clk 0:02:17.2]} 16. Rac1 {[%clk 0:00:50.2]} 16... Rfd8
{[%clk 0:02:11.6]} 17. Nb3 {[%clk 0:00:48.5]} 17... Nxe4 {[%clk 0:01:43.4]} 18.
Bxe4 {[%clk 0:00:48.1]} 18... Bxe4 {[%clk 0:01:43.9]} 19. Qxe4 {[%clk
0:00:48.9]} 19... Nf6 {[%clk 0:01:35.2]} 20. Qc2 {[%clk 0:00:43.1]} 20... cxd4
{[%clk 0:01:30.5]} 21. Nxd4 {[%clk 0:00:39.1]} 21... Ng4 {[%clk 0:01:16.1]} 22.
g3 {[%clk 0:00:34.4]} 22... Ne5 {[%clk 0:01:15.9]} 23. c5 {[%clk 0:00:25.8]}
23... Rac8 {[%clk 0:00:56]} 24. Qe4 {[%clk 0:00:20.5]} 24... Nc6 {[%clk
0:00:52.9]} 25. Nb5 {[%clk 0:00:19.6]} 25... Qe7 {[%clk 0:00:41.3]} 26. Nd6
{[%clk 0:00:20.1]} 26... Rc7 {[%clk 0:00:39.7]} 27. Rfd1 {[%clk 0:00:20.3]}
27... f5 {[%clk 0:00:35.1]} 28. Qc4 {[%clk 0:00:17.9]} 28... Kh8 {[%clk
0:00:23.1]} 29. Kg2 {[%clk 0:00:18.2]} 29... h5 {[%clk 0:00:20.3]} 30. Nb5
{[%clk 0:00:18.2]} 30... Rcd7 {[%clk 0:00:19.6]} 31. Rxd7 {[%clk 0:00:17.4]}
31... Qxd7 {[%clk 0:00:18.8]} 32. Nd4 {[%clk 0:00:17.6]} 32... Nxd4 {[%clk
0:00:16.2]} 33. exd4 {[%clk 0:00:17.3]} 33... Qc6+ {[%clk 0:00:16.6]} 34. f3
{[%clk 0:00:16.2]} 34... Rd5 {[%clk 0:00:10.9]} 35. Qb5 {[%clk 0:00:12.1]} 35...
Qc7 {[%clk 0:00:07.2]} 36. Qe8+ {[%clk 0:00:10.9]} 36... Kh7 {[%clk 0:00:05.9]}
37. Qxh5+ {[%clk 0:00:11.8]} 37... Kg8 {[%clk 0:00:06.3]} 38. Qe8+ {[%clk
0:00:12.6]} 38... Kh7 {[%clk 0:00:06.6]} 39. Qxe6 {[%clk 0:00:10.5]} 39... Rxd4
{[%clk 0:00:05.3]} 40. Qxf5+ {[%clk 0:00:10.6]} 40... Kh8 {[%clk 0:00:04.8]} 41.
Qf8+ {[%clk 0:00:08]} 41... Kh7 {[%clk 0:00:04.5]} 42. Qf5+ {[%clk 0:00:08.9]}
42... Kh8 {[%clk 0:00:04.8]} 43. Rc2 {[%clk 0:00:07.8]} 43... Rd8 {[%clk
0:00:04.8]} 44. c6 {[%clk 0:00:07.7]} 44... Qd6 {[%clk 0:00:04.7]} 45. Re2
{[%clk 0:00:07.6]} 45... Qd1 {[%clk 0:00:03]} 46. Re4 {[%clk 0:00:07.3]} 46...
Qd2+ {[%clk 0:00:02.8]} 47. Kh3 {[%clk 0:00:07.6]} 1-0

[Event "*** Titled Tuesday Blitz"]
[Site "Chess.com"]
[Date "2021.03.30"]
[Round "7"]
[White "crazyluzhinTh3"]
[Black "Aleksey_Sorokin"]
[Result "0-1"]
[WhiteElo "2530"]
[BlackElo "2771"]
[TimeControl "180+1"]
[EndTime "11:18:45 PDT"]
[Termination "Aleksey_Sorokin won by checkmate"]

1. e4 {[%clk 0:03:00.9]} 1... c6 {[%clk 0:02:59.4]} 2. d4 {[%clk 0:03:00.4]}
2... d5 {[%clk 0:03:00.3]} 3. e5 {[%clk 0:03:00.9]} 3... Bf5 {[%clk 0:03:00]} 4.
Nf3 {[%clk 0:03:01.1]} 4... Bg4 {[%clk 0:02:59.9]} 5. Be2 {[%clk 0:02:53.3]}
5... e6 {[%clk 0:02:59.8]} 6. O-O {[%clk 0:02:50.8]} 6... Nh6 {[%clk 0:03:00.2]}
7. b3 {[%clk 0:02:37.6]} 7... Qb6 {[%clk 0:02:59.2]} 8. c4 {[%clk 0:02:23]} 8...
Nf5 {[%clk 0:02:53.3]} 9. c5 {[%clk 0:01:57.9]} 9... Qc7 {[%clk 0:02:45.1]} 10.
h3 {[%clk 0:01:57.8]} 10... Bxf3 {[%clk 0:02:36.8]} 11. Bxf3 {[%clk 0:01:58.7]}
11... Nd7 {[%clk 0:02:35.2]} 12. Bb2 {[%clk 0:01:56.6]} 12... O-O-O {[%clk
0:02:32.9]} 13. b4 {[%clk 0:01:54.4]} 13... Nh4 {[%clk 0:02:32.9]} 14. Be2
{[%clk 0:01:50.2]} 14... f6 {[%clk 0:02:33.2]} 15. f4 {[%clk 0:01:34.3]} 15...
g5 {[%clk 0:02:28]} 16. Bg4 {[%clk 0:01:22.6]} 16... f5 {[%clk 0:02:20.6]} 17.
Bh5 {[%clk 0:01:20.7]} 17... Be7 {[%clk 0:02:20.1]} 18. Bc1 {[%clk 0:01:14.3]}
18... Rdg8 {[%clk 0:02:19.1]} 19. Rf2 {[%clk 0:00:52.4]} 19... Rg7 {[%clk
0:02:10.7]} 20. a4 {[%clk 0:00:44.5]} 20... Rhg8 {[%clk 0:02:10.1]} 21. Raa2
{[%clk 0:00:44.3]} 21... g4 {[%clk 0:02:03.5]} 22. hxg4 {[%clk 0:00:39.2]} 22...
fxg4 {[%clk 0:02:03.1]} 23. g3 {[%clk 0:00:30.8]} 23... Nf5 {[%clk 0:02:02.7]}
24. Kg2 {[%clk 0:00:31.3]} 24... Qd8 {[%clk 0:02:02.1]} 25. Nc3 {[%clk 0:00:28]}
25... Bh4 {[%clk 0:02:02]} 26. Ne2 {[%clk 0:00:24.1]} 26... Nf8 {[%clk
0:01:18.9]} 27. b5 {[%clk 0:00:21.7]} 27... Ng6 {[%clk 0:01:17.4]} 28. bxc6
{[%clk 0:00:20.5]} 28... bxc6 {[%clk 0:01:16.8]} 29. Qd3 {[%clk 0:00:21.1]}
29... Kb8 {[%clk 0:01:05.4]} 30. Rb2+ {[%clk 0:00:20.8]} 30... Ka8 {[%clk
0:01:05.6]} 31. Qa6 {[%clk 0:00:21.3]} 31... Rc7 {[%clk 0:01:00.6]} 32. Bxg6
{[%clk 0:00:20.9]} 32... Rxg6 {[%clk 0:00:58]} 33. Rb3 {[%clk 0:00:20.6]} 33...
h5 {[%clk 0:00:53.7]} 34. gxh4 {[%clk 0:00:19.3]} 34... g3 {[%clk 0:00:52.3]}
35. Rf1 {[%clk 0:00:16.3]} 35... Qxh4 {[%clk 0:00:47.1]} 36. Rh1 {[%clk
0:00:14.5]} 36... Qg4 {[%clk 0:00:47.2]} 37. Rf3 {[%clk 0:00:14.1]} 37... Nh4+
{[%clk 0:00:43]} 38. Rxh4 {[%clk 0:00:14.2]} 38... Qxh4 {[%clk 0:00:43.9]} 39.
Nxg3 {[%clk 0:00:13.8]} 39... Qg4 {[%clk 0:00:44.3]} 40. f5 {[%clk 0:00:12.8]}
40... exf5 {[%clk 0:00:41.6]} 41. Bf4 {[%clk 0:00:13.3]} 41... h4 {[%clk
0:00:38.5]} 42. e6 {[%clk 0:00:13.8]} 42... Rb7 {[%clk 0:00:27.6]} 43. Qxc6
{[%clk 0:00:13]} 43... Rg8 {[%clk 0:00:04.5]} 44. e7 {[%clk 0:00:13.5]} 44... a5
{[%clk 0:00:03.4]} 45. e8=Q+ {[%clk 0:00:12.8]} 45... Rxe8 {[%clk 0:00:03.7]}
46. Qxe8+ {[%clk 0:00:13.3]} 46... Ka7 {[%clk 0:00:04.6]} 47. Qc6 {[%clk
0:00:11.7]} 47... Rb2+ {[%clk 0:00:04.3]} 48. Rf2 {[%clk 0:00:11.9]} 48... h3+
{[%clk 0:00:02.2]} 49. Kg1 {[%clk 0:00:09.9]} 49... Qd1+ {[%clk 0:00:02.3]} 50.
Kh2 {[%clk 0:00:10.1]} 50... Rxf2+ {[%clk 0:00:01.7]} 51. Kxh3 {[%clk
0:00:10.6]} 51... Qg4# {[%clk 0:00:02.4]} 0-1